[Event "Estonian Women's Chess Championship 2025"]
[Site "Tallinn, EE"]
[Date "2025.12.12"]
[Round "1.2"]
[White "Olde, Grete"]
[Black "Pritulina, Svetlana"]
[Result "1/2-1/2"]
[Board "4"]
[TimeControl "5400+30"]
[WhiteFideId "4503104"]
[BlackFideId "4500890"]
[WhiteTitle "WCM"]
[BlackTitle "WCM"]
[WhiteElo "1989"]
[BlackElo "2007"]
[WhiteTeam "EST"]
[BlackTeam "EST"]
[WhiteClock "0:33:57"]
[BlackClock "0:02:54"]
[Variant "Standard"]

1. e4 {

[%clk 1:30:57]

}  d6 {

[%clk 1:26:26]

} 2. d4 {

[%clk 1:31:16]

}  Nf6 {

[%clk 1:26:33]

} 3. Nc3 {

[%clk 1:31:20]

}  g6 {

[%clk 1:26:41]

} 4. Be3 {

[%clk 1:31:34]

}  Bg7 {

[%clk 1:26:34]

} 5. Qd2 {

[%clk 1:31:45]

}  h5 {

[%clk 1:26:16]

} 6. h4 {

[%clk 1:31:53]

}  Ng4 {

[%clk 1:19:31]

} 7. Bg5 {

[%clk 1:27:37]

}  f6 {

[%clk 1:10:55]

} 8. f3 {

[%clk 1:18:49]

}  fxg5 {

[%clk 1:01:55]

} 9. fxg4 {

[%clk 1:16:47]

}  Bxg4 {

[%clk 0:54:35]

} 10. Qxg5 {

[%clk 1:13:45]

}  Rh6 {

[%clk 0:53:57]

} 11. Be2 {

[%clk 1:09:23]

}  Bxe2 {

[%clk 0:46:29]

} 12. Ngxe2 {

[%clk 1:08:41]

}  e5 {

[%clk 0:46:25]

} 13. dxe5 {

[%clk 1:06:19]

}  dxe5 {

[%clk 0:44:19]

} 14. Qxd8+ {

[%clk 0:55:37]

}  Kxd8 {

[%clk 0:44:39]

} 15. Rd1+ {

[%clk 0:54:49]

}  Ke8 {

[%clk 0:44:55]

} 16. Nb5 {

[%clk 0:50:49]

}  Na6 {

[%clk 0:42:15]

} 17. Nec3 {

[%clk 0:49:15]

}  Rd8 {

[%clk 0:27:03]

} 18. O-O {

[%clk 0:45:37]

}  Rxd1 {

[%clk 0:24:30]

} 19. Rxd1 {

[%clk 0:45:09]

}  Rh7 {

[%clk 0:19:13]

} 20. Nxa7 {

[%clk 0:42:00]

}  c6 {

[%clk 0:19:22]

} 21. Nc8 {

[%clk 0:42:00]

}  Bf8 {

[%clk 0:17:44]

} 22. Nd6+ {

[%clk 0:41:36]

}  Bxd6 {

[%clk 0:16:22]

} 23. Rxd6 {

[%clk 0:41:58]

}  Rg7 {

[%clk 0:16:35]

} 24. Re6+ {

[%clk 0:39:43]

}  Kd7 {

[%clk 0:16:28]

} 25. Rxe5 {

[%clk 0:39:59]

}  Nb4 {

[%clk 0:16:44]

} 26. Rg5 {

[%clk 0:38:12]

}  Nxc2 {

[%clk 0:15:19]

} 27. e5 {

[%clk 0:36:19]

}  Nd4 {

[%clk 0:15:14]

} 28. Ne4 {

[%clk 0:32:44]

}  Ke7 {

[%clk 0:12:34]

} 29. Nd6 {

[%clk 0:31:00]

}  Ne6 {

[%clk 0:09:48]

} 30. Rg3 {

[%clk 0:31:14]

}  b5 {

[%clk 0:08:25]

} 31. Ra3 {

[%clk 0:27:29]

}  Nc7 {

[%clk 0:08:47]

} 32. Rg3 {

[%clk 0:25:47]

}  Ke6 {

[%clk 0:08:11]

} 33. Rg5 {

[%clk 0:25:28]

}  c5 {

[%clk 0:08:02]

} 34. Kf2 {

[%clk 0:24:27]

}  Kd5 {

[%clk 0:05:13]

} 35. Ke3 {

[%clk 0:21:55]

}  Ne6 {

[%clk 0:04:53]

} 36. Rg3 {

[%clk 0:22:15]

}  b4 {

[%clk 0:05:12]

} 37. Kd3 {

[%clk 0:18:21]

}  Nf4+ {

[%clk 0:04:09]

} 38. Ke3 {

[%clk 0:18:16]

}  Ne6 {

[%clk 0:03:32]

} 39. Kd3 {

[%clk 0:18:33]

}  Nf4+ {

[%clk 0:03:19]

} 40. Ke3 {

[%clk 0:33:57]

}  Kxe5 {

[%clk 0:02:54]

} 1/2-1/2